fUST/lending_fUST_20250522
["ID","MTS","AMOUNT","RATE_DAILY","PERIOD"]
[361943131,1747903845379,-430.0,0.00022191,2]
[361943133,1747903845389,-430.0,0.00022191,2]
[361943135,1747903845398,-430.0,0.00022191,2]
[361943137,1747903845408,-430.0,0.00022191,2]
[361943139,1747903845417,-420.0,0.00022191,2]
[361943141,1747903845427,-627.31,0.00022191,2]
[361943143,1747903845436,-430.0,0.00022191,2]
[361943145,1747903845445,-430.0,0.00022191,2]
[361943147,1747903845455,-370.87806351,0.00022191,2]
[361943149,1747903845464,-430.0,0.00022191,2]
[361943151,1747903845473,-404.0190119,0.00022191,2]
[361943153,1747903845482,-430.0,0.00022191,2]
[361943155,1747903845492,-420.0,0.00022191,2]
[361943157,1747903845501,-430.0,0.00022191,2]
[361943159,1747903845511,-430.0,0.00022191,2]
[361943161,1747903845520,-430.0,0.00022191,2]
[361943163,1747903845529,-430.0,0.00022191,2]
[361943165,1747903845539,-430.0,0.00022191,2]
[361943167,1747903845548,-430.0,0.00022191,2]
[361943169,1747903845557,-430.0,0.00022191,2]
[361943171,1747903845566,-464.39286384,0.00022191,2]
[361943173,1747903845575,-430.0,0.00022191,2]
[361943175,1747903845584,-430.0,0.00022191,2]
[361943177,1747903845594,-430.0,0.00022191,2]
[361943179,1747903845603,-430.0,0.00022191,2]
[361943181,1747903845613,-430.0,0.00022191,2]
[361943183,1747903845623,-430.0,0.00022191,2]
[361943185,1747903845632,-301.11863513,0.00022191,2]
[361943187,1747903845642,-430.0,0.00022191,2]
[361943189,1747903845651,-430.0,0.00022191,2]
[361943191,1747903845660,-710.92,0.00022191,2]
[361943193,1747903845669,-391.9369699,0.00022191,2]
[361943195,1747903845678,-430.0,0.00022191,2]
[361943197,1747903845689,-430.0,0.00022191,2]
[361943199,1747903845700,-620.77,0.00022191,2]
[361943201,1747903845712,-430.0,0.00022191,2]
[361943203,1747903845724,-430.0,0.00022191,2]
[361943205,1747903845734,-927.85,0.00022191,2]
[361943207,1747903845747,-371.89646484,0.00022191,2]
[361943209,1747903845759,-430.0,0.00022191,2]
[361943210,1747903845772,-430.0,0.00022191,2]
[361943213,1747903845786,-430.0,0.00022191,2]
[361943215,1747903845798,-430.0,0.00022191,2]
[361943218,1747903845809,-400.0,0.00022191,2]
[361943220,1747903845818,-430.0,0.00022191,2]
[361943223,1747903845828,-430.0,0.00022191,2]
[361943225,1747903845838,-972.75,0.00022191,2]
[361943227,1747903845847,-430.0,0.00022191,2]
[361943244,1747903845961,-430.0,0.00022191,2]
[361943247,1747903845973,-430.0,0.00022191,2]
[361943250,1747903845983,-370.0,0.00022191,2]
[361943253,1747903845992,-430.0,0.00022191,2]
[361943255,1747903846003,-430.0,0.00022191,2]
[361943258,1747903846012,-157.20591783,0.00022191,2]
[361943261,1747903846021,-430.0,0.00022191,2]
[361943263,1747903846031,-430.0,0.00022191,2]
[361943266,1747903846041,-430.0,0.00022191,2]
[361943269,1747903846051,-430.0,0.00022191,2]
[361943272,1747903846060,-430.0,0.00022191,2]
[361943275,1747903846069,-296.68,0.00022191,2]
[361943277,1747903846080,-430.0,0.00022191,2]
[361943280,1747903846089,-430.0,0.00022191,2]
[361943282,1747903846098,-385.12348697,0.00022191,2]
[361943285,1747903846108,-275.59575239,0.00022191,2]
[361943287,1747903846118,-430.0,0.00022191,2]
[361943288,1747903846130,-430.0,0.00022191,2]
[361943290,1747903846140,-430.0,0.00022191,2]
[361943292,1747903846150,-430.0,0.00022191,2]
[361943294,1747903846160,-430.0,0.00022191,2]
[361943296,1747903846171,-430.0,0.00022191,2]
[361943299,1747903846182,-430.0,0.00022191,2]
[361943302,1747903846192,-573.74403596,0.00022191,2]
[361943304,1747903846202,-430.0,0.00022191,2]
[361943305,1747903846212,-430.0,0.00022191,2]
[361943308,1747903846222,-232.95398784,0.00022191,2]
[361943310,1747903846232,-430.0,0.00022191,2]
[361943311,1747903846242,-430.0,0.00022191,2]
[361943313,1747903846252,-1948.72,0.00022191,2]
[361943315,1747903846261,-430.0,0.00022191,2]
[361943317,1747903846271,-430.0,0.00022191,2]
[361943320,1747903846283,-430.0,0.00022191,2]
[361943321,1747903846293,-430.0,0.00022191,2]
[361943323,1747903846302,-430.0,0.00022191,2]
[361943326,1747903846312,-430.0,0.00022191,2]
[361943328,1747903846322,-400.0,0.00022191,2]
[361943329,1747903846331,-430.0,0.00022191,2]
[361943331,1747903846340,-406.22800147,0.00022191,2]
[361943333,1747903846350,-430.0,0.00022191,2]
[361943335,1747903846359,-430.0,0.00022191,2]
[361943337,1747903846368,-430.0,0.00022191,2]
[361943339,1747903846380,-430.0,0.00022191,2]
[361943341,1747903846390,-430.0,0.00022191,2]
[361943343,1747903846399,-430.0,0.00022191,2]
[361943345,1747903846408,-430.0,0.00022191,2]
[361943347,1747903846417,-2417.78620712,0.0002221,6]
[361943349,1747903846427,-500.54451007,0.00022271,2]
[361943351,1747903846437,-151.0,0.00022307,2]
[361943353,1747903846447,-207.4,0.00022307,2]
[361943355,1747903846456,-2417.78620712,0.00022314,7]
[361943357,1747903846466,-1091.59785078,0.00022335,2]
[361943359,1747903846476,-2417.78620712,0.00022417,7]
[361943361,1747903846486,-160.0,0.00022444,2]
[361943363,1747903846495,-212.4501065,0.00022448,2]
[361943365,1747903846505,-360.0,0.00022465,2]
[361943367,1747903846514,-495.31940556,0.00022465,2]
[361943369,1747903846524,-340.0,0.00022465,2]
[361943371,1747903846533,-434.63568551,0.00022465,2]
[361943373,1747903846542,-432.34084179,0.00022465,2]
[361943375,1747903846552,-430.0,0.00022465,2]
[361943377,1747903846563,-430.0,0.00022465,2]
[361943380,1747903846572,-430.0,0.00022465,2]
[361943382,1747903846582,-430.0,0.00022465,2]
[361943384,1747903846591,-430.0,0.00022465,2]
[361943386,1747903846601,-371.08733798,0.00022465,2]
[361943388,1747903846610,-430.0,0.00022465,2]
[361943390,1747903846619,-420.36166965,0.00022465,2]
[361943392,1747903846632,-430.0,0.00022465,2]
[361943394,1747903846641,-500.0,0.00022465,2]
[361943396,1747903846651,-430.0,0.00022465,2]
[361943399,1747903846661,-430.0,0.00022465,2]
[361943401,1747903846670,-430.0,0.00022465,2]
[361943403,1747903846679,-430.0,0.00022465,2]
[361943404,1747903846689,-430.0,0.00022465,2]
[361943407,1747903846699,-430.0,0.00022465,2]
[361943408,1747903846708,-430.0,0.00022465,2]
[361943410,1747903846718,-430.0,0.00022465,2]
[361943413,1747903846728,-430.0,0.00022465,2]
[361943415,1747903846737,-430.0,0.00022465,2]
[361943417,1747903846747,-430.0,0.00022465,2]
[361943419,1747903846756,-430.0,0.00022465,2]
[361943421,1747903846766,-320.0,0.00022465,2]
[361943423,1747903846779,-215.54966305,0.00022465,2]
[361943425,1747903846788,-366.20644571,0.00022465,2]
[361943426,1747903846798,-430.0,0.00022465,2]
[361943429,1747903846808,-430.0,0.00022465,2]
[361943431,1747903846818,-430.0,0.00022465,2]
[361943433,1747903846828,-450.0,0.00022465,2]
[361943435,1747903846838,-382.79154148,0.00022465,2]
[361943437,1747903846848,-430.0,0.00022465,2]
[361943439,1747903846858,-430.0,0.00022465,2]
[361943441,1747903846868,-430.0,0.00022465,2]
[361943443,1747903846878,-430.0,0.00022465,2]
[361943445,1747903846888,-430.0,0.00022465,2]
[361943447,1747903846897,-370.0,0.00022465,2]
[361943449,1747903846907,-430.0,0.00022465,2]
[361943451,1747903846916,-420.0,0.00022465,2]
[361943453,1747903846925,-430.0,0.00022465,2]
[361943454,1747903846935,-430.0,0.00022465,2]
[361943456,1747903846944,-430.0,0.00022465,2]
[361943458,1747903846953,-430.0,0.00022465,2]
[361943460,1747903846962,-430.0,0.00022465,2]
[361943462,1747903846972,-430.0,0.00022465,2]
[361943464,1747903846981,-430.0,0.00022465,2]
[361943466,1747903846990,-214.53,0.00022465,2]
[361943468,1747903847000,-430.0,0.00022465,2]
[361943470,1747903847009,-430.0,0.00022465,2]
[361943472,1747903847018,-450.0,0.00022465,2]
[361943474,1747903847027,-430.0,0.00022465,2]
[361943476,1747903847037,-451.71,0.00022465,2]
[361943478,1747903847047,-194.01368691,0.00022465,2]
[361943480,1747903847056,-430.0,0.00022465,2]
[361943482,1747903847066,-430.0,0.00022465,2]
[361943484,1747903847075,-436.69430599,0.00022465,2]
[361943486,1747903847085,-430.0,0.00022465,2]
[361943488,1747903847096,-430.0,0.00022465,2]
[361943490,1747903847105,-430.0,0.00022465,2]
[361943492,1747903847114,-430.0,0.00022465,2]
[361943494,1747903847125,-430.0,0.00022465,2]
[361943496,1747903847135,-430.0,0.00022465,2]
[361943498,1747903847144,-430.0,0.00022465,2]
[361943500,1747903847155,-430.0,0.00022465,2]
[361943502,1747903847164,-430.0,0.00022465,2]
[361943504,1747903847174,-430.0,0.00022465,2]
[361943506,1747903847183,-567.65,0.00022465,2]
[361943508,1747903847192,-456.57,0.00022465,2]
[361943510,1747903847201,-200.0,0.00022465,2]
[361943512,1747903847211,-430.0,0.00022465,2]
[361943514,1747903847220,-794.04,0.00022465,2]
[361943516,1747903847230,-430.0,0.00022465,2]
[361943518,1747903847239,-430.0,0.00022465,2]
[361943520,1747903847248,-430.0,0.00022465,2]
[361943522,1747903847257,-558.34,0.00022465,2]
[361943524,1747903847267,-430.0,0.00022465,2]
[361943526,1747903847276,-430.0,0.00022465,2]
[361943528,1747903847285,-430.0,0.00022465,2]
[361943530,1747903847295,-436.00544376,0.00022465,2]
[361943532,1747903847305,-430.0,0.00022465,2]
[361943534,1747903847314,-212.62685402,0.00022465,2]
[361943536,1747903847323,-430.0,0.00022465,2]
[361943538,1747903847333,-1146.06,0.00022465,2]
[361943539,1747903847342,-316.09857775,0.00022465,2]
[361943541,1747903847351,-281.57254614,0.00022465,2]
[361943543,1747903847360,-430.0,0.00022465,2]
[361943545,1747903847370,-1924.26,0.00022465,2]
[361943547,1747903847381,-691.64,0.00022465,2]
[361943549,1747903847391,-430.98,0.00022465,2]
[361943552,1747903847404,-430.0,0.00022465,2]
[361943554,1747903847414,-430.0,0.00022465,2]
[361943556,1747903847422,-430.0,0.00022465,2]
[361943558,1747903847432,-430.0,0.00022465,2]
[361943560,1747903847441,-430.0,0.00022465,2]
[361943562,1747903847451,-430.0,0.00022465,2]
[361943564,1747903847460,-430.0,0.00022465,2]
[361943566,1747903847470,-404.92,0.00022465,2]
[361943568,1747903847479,-430.0,0.00022465,2]
[361943570,1747903847488,-430.0,0.00022465,2]
[361943572,1747903847498,-442.12491051,0.00022465,2]
[361943573,1747903847507,-430.0,0.00022465,2]
[361943575,1747903847516,-483.43,0.00022465,2]
[361943577,1747903847526,-430.0,0.00022465,2]
[361943579,1747903847535,-430.0,0.00022465,2]
[361943581,1747903847544,-851.98,0.00022465,2]
[361943583,1747903847555,-430.0,0.00022465,2]
[361943586,1747903847565,-430.0,0.00022465,2]
[361943588,1747903847575,-1178.0,0.00022465,2]
[361943590,1747903847584,-534.52,0.00022465,2]
[361943592,1747903847593,-430.0,0.00022465,2]
[361943593,1747903847602,-430.0,0.00022465,2]
[361943595,1747903847612,-430.0,0.00022465,2]
[361943597,1747903847621,-430.0,0.00022465,2]
[361943599,1747903847631,-430.0,0.00022465,2]
[361943601,1747903847640,-450.0,0.00022465,2]
[361943603,1747903847649,-430.0,0.00022465,2]
[361943605,1747903847658,-430.0,0.00022465,2]
[361943607,1747903847668,-430.0,0.00022465,2]
[361943609,1747903847677,-440.26517681,0.00022465,2]
[361943610,1747903847687,-430.0,0.00022465,2]
[361943611,1747903847696,-627.31,0.00022465,2]
[361943612,1747903847705,-437.95,0.00022465,2]
[361943613,1747903847715,-430.0,0.00022465,2]
[361943614,1747903847724,-436.83467389,0.00022465,2]
[361943615,1747903847734,-435.35967499,0.00022465,2]
[361943616,1747903847744,-430.0,0.00022465,2]
[361943617,1747903847753,-430.0,0.00022465,2]
[361943618,1747903847762,-430.26799731,0.00022465,2]
[361943619,1747903847772,-430.0,0.00022465,2]
[361943620,1747903847782,-434.3,0.00022465,2]
[361943633,1747903847893,-430.0,0.00022465,2]
[361943635,1747903847904,-430.0,0.00022465,2]
[361943637,1747903847913,-430.0,0.00022465,2]
[361943639,1747903847924,-430.0,0.00022465,2]
[361943641,1747903847933,-430.0,0.00022465,2]
[361943643,1747903847944,-430.0,0.00022465,2]
[361943645,1747903847953,-430.0,0.00022465,2]
[361943647,1747903847962,-710.92,0.00022465,2]
[361943649,1747903847974,-489.17494733,0.00022465,2]
[361943651,1747903847983,-430.0,0.00022465,2]
[361943653,1747903847993,-620.77,0.00022465,2]
[361943655,1747903848003,-430.0,0.00022465,2]
[361943657,1747903848012,-381.84231023,0.00022465,2]
[361943659,1747903848021,-927.85,0.00022465,2]
[361943661,1747903848031,-437.69743656,0.00022465,2]
[361943663,1747903848040,-430.0,0.00022465,2]
[361943665,1747903848050,-972.75,0.00022465,2]
[361943667,1747903848059,-430.0,0.00022465,2]
[361943668,1747903848069,-430.0,0.00022465,2]
[361943671,1747903848080,-430.0,0.00022465,2]
[361943673,1747903848091,-430.0,0.00022465,2]
[361943674,1747903848101,-430.0,0.00022465,2]
[361943677,1747903848112,-430.0,0.00022465,2]
[361943679,1747903848122,-441.65195025,0.00022465,2]
[361943680,1747903848132,-430.0,0.00022465,2]
[361943682,1747903848143,-430.0,0.00022465,2]
[361943685,1747903848153,-430.0,0.00022465,2]
[361943687,1747903848163,-430.0,0.00022465,2]
[361943689,1747903848172,-430.0,0.00022465,2]
[361943691,1747903848181,-430.0,0.00022465,2]
[361943693,1747903848192,-430.0,0.00022465,2]
[361943695,1747903848201,-430.0,0.00022465,2]
[361943696,1747903848211,-430.0,0.00022465,2]
[361943698,1747903848221,-430.0,0.00022465,2]
[361943700,1747903848231,-1948.72,0.00022465,2]
[361943702,1747903848241,-430.0,0.00022465,2]
[361943704,1747903848250,-430.0,0.00022465,2]
[361943706,1747903848260,-430.0,0.00022465,2]
[361943708,1747903848270,-430.0,0.00022465,2]
[361943710,1747903848279,-430.0,0.00022465,2]
[361943712,1747903848289,-430.0,0.00022465,2]
[361943714,1747903848299,-430.0,0.00022465,2]
[361943716,1747903848309,-430.0,0.00022465,2]
[361943718,1747903848319,-440.39180069,0.00022465,2]
[361943720,1747903848329,-430.0,0.00022465,2]
[361943723,1747903848339,-500.0,0.00022521,2]
[361943725,1747903848349,-500.0,0.00022521,2]
[361943727,1747903848359,-1000.0,0.00022521,2]
[361943729,1747903848369,-2417.78620712,0.00022521,7]
[361943731,1747903848379,-2417.78620712,0.00022624,7]
[361943732,1747903848388,-500.0,0.00022639,2]
[361943735,1747903848399,-2417.78620712,0.00022728,7]
[361943737,1747903848408,-430.0,0.00022739,2]
[361943738,1747903848418,-470.0,0.00022739,2]
[361943741,1747903848428,-430.0,0.00022739,2]
[361943743,1747903848437,-430.0,0.00022739,2]
[361943745,1747903848447,-430.0,0.00022739,2]
[361943747,1747903848457,-430.0,0.00022739,2]
[361943749,1747903848467,-430.0,0.00022739,2]
[361943751,1747903848476,-430.0,0.00022739,2]
[361943753,1747903848486,-450.0,0.00022739,2]
[361943755,1747903848496,-340.0,0.00022739,2]
[361943757,1747903848506,-430.0,0.00022739,2]
[361943759,1747903848515,-433.56179786,0.00022739,2]
[361943761,1747903848525,-430.0,0.00022739,2]
[361943763,1747903848534,-285.31245619,0.00022739,2]
[361943764,1747903848544,-430.0,0.00022739,2]
[361943767,1747903848554,-420.0,0.00022739,2]
[361943769,1747903848564,-430.0,0.00022739,2]
[361943770,1747903848573,-430.0,0.00022739,2]
[361943773,1747903848583,-470.0,0.00022739,2]
[361943775,1747903848593,-190.56416107,0.00022739,2]
[361943777,1747903848602,-430.0,0.00022739,2]
[361943778,1747903848611,-430.0,0.00022739,2]
[361943780,1747903848621,-420.0,0.00022739,2]
[361943782,1747903848632,-470.0,0.00022739,2]
[361943784,1747903848641,-507.91055769,0.00022739,2]
[361943786,1747903848651,-430.0,0.00022739,2]
[361943788,1747903848660,-430.0,0.00022739,2]
[361943790,1747903848670,-430.0,0.00022739,2]
[361943792,1747903848680,-430.0,0.00022739,2]
[361943794,1747903848689,-430.0,0.00022739,2]
[361943796,1747903848699,-393.23708223,0.00022739,2]
[361943798,1747903848708,-430.0,0.00022739,2]
[361943800,1747903848718,-456.57,0.00022739,2]
[361943803,1747903848728,-430.0,0.00022739,2]
[361943805,1747903848738,-794.04,0.00022739,2]
[361943806,1747903848747,-430.0,0.00022739,2]
[361943809,1747903848758,-558.34,0.00022739,2]
[361943811,1747903848767,-436.35092718,0.00022739,2]
[361943813,1747903848781,-328.5073189,0.00022739,2]
[361943815,1747903848790,-430.0,0.00022739,2]
[361943817,1747903848800,-430.0,0.00022739,2]
[361943819,1747903848809,-1146.06,0.00022739,2]
[361943820,1747903848820,-360.0,0.00022739,2]
[361943823,1747903848829,-1924.26,0.00022739,2]
[361943825,1747903848840,-691.64,0.00022739,2]
[361943826,1747903848850,-430.0,0.00022739,2]
[361943829,1747903848860,-430.0,0.00022739,2]
[361943830,1747903848869,-430.0,0.00022739,2]
[361943833,1747903848880,-430.0,0.00022739,2]
[361943835,1747903848891,-558.67190043,0.00022739,2]
[361943837,1747903848900,-430.0,0.00022739,2]
[361943839,1747903848910,-430.0,0.00022739,2]
[361943841,1747903848920,-430.0,0.00022739,2]
[361943843,1747903848929,-430.0,0.00022739,2]
[361943845,1747903848939,-851.98,0.00022739,2]
[361943847,1747903848949,-430.0,0.00022739,2]
[361943849,1747903848958,-430.0,0.00022739,2]
[361943850,1747903848967,-1178.0,0.00022739,2]
[361943852,1747903848976,-430.0,0.00022739,2]
[361943854,1747903848986,-430.0,0.00022739,2]
[361943857,1747903848995,-430.0,0.00022739,2]
[361943858,1747903849005,-430.0,0.00022739,2]
[361943860,1747903849014,-430.0,0.00022739,2]
[361943862,1747903849024,-430.0,0.00022739,2]
[361943864,1747903849033,-430.0,0.00022739,2]
[361943866,1747903849043,-430.0,0.00022739,2]
[361943868,1747903849052,-627.31,0.00022739,2]
[361943871,1747903849063,-430.0,0.00022739,2]
[361943873,1747903849072,-430.0,0.00022739,2]
[361943875,1747903849081,-430.0,0.00022739,2]
[361943877,1747903849091,-430.0,0.00022739,2]
[361943879,1747903849100,-430.0,0.00022739,2]
[361943881,1747903849109,-430.0,0.00022739,2]
[361943883,1747903849119,-430.0,0.00022739,2]
[361943885,1747903849131,-710.92,0.00022739,2]
[361943887,1747903849141,-441.75737556,0.00022739,2]
[361943889,1747903849151,-620.77,0.00022739,2]
[361943891,1747903849161,-430.0,0.00022739,2]
[361943893,1747903849171,-927.85,0.00022739,2]
[361943895,1747903849181,-179.75,0.00022739,2]
[361943897,1747903849191,-972.75,0.00022739,2]
[361943899,1747903849201,-430.0,0.00022739,2]
[361943900,1747903849210,-430.0,0.00022739,2]
[361943903,1747903849220,-430.0,0.00022739,2]
[361943905,1747903849229,-430.0,0.00022739,2]
[361943907,1747903849239,-430.0,0.00022739,2]
[361943909,1747903849249,-430.0,0.00022739,2]
[361943911,1747903849258,-412.27976292,0.00022739,2]
[361943913,1747903849267,-430.0,0.00022739,2]
[361943915,1747903849277,-430.0,0.00022739,2]
[361943917,1747903849286,-430.0,0.00022739,2]
[361943919,1747903849296,-430.0,0.00022739,2]
[361943921,1747903849306,-1948.72,0.00022739,2]
[361943923,1747903849316,-430.0,0.00022739,2]
[361943925,1747903849325,-213.49625718,0.00022739,2]
[361943927,1747903849334,-306.00428834,0.00022739,2]
[361943929,1747903849343,-430.0,0.00022739,2]
[361943931,1747903849353,-430.0,0.00022739,2]
[361943933,1747903849363,-430.0,0.00022739,2]
[361943935,1747903849372,-430.0,0.00022739,2]
[361943937,1747903849383,-156.58770561,0.00022751,5]
[361943939,1747903849393,-2417.78620712,0.00022831,8]
[361943941,1747903849402,-1091.59785078,0.00022854,2]
[361943943,1747903849412,-2417.78620712,0.00022934,8]
[361943945,1747903849421,-1680.0,0.00022951,2]
[361943947,1747903849431,-420.0,0.00022956,2]
[361943949,1747903849440,-420.0,0.00022956,2]
[361943951,1747903849449,-500.0,0.00023,30]
[361943953,1747903849459,-740.76057521,0.00023,30]
[361943955,1747903849468,-1000.0,0.00023,23]
[361943957,1747903849477,-430.0,0.00023013,2]
[361943959,1747903849487,-442.15684312,0.00023013,2]
[361943961,1747903849497,-430.0,0.00023013,2]
[361943963,1747903849507,-430.0,0.00023013,2]
[361943965,1747903849517,-430.0,0.00023013,2]
[361943967,1747903849527,-430.0,0.00023013,2]
[361943969,1747903849537,-218.55830979,0.00023013,2]
[361943971,1747903849547,-430.0,0.00023013,2]
[361943973,1747903849557,-430.0,0.00023013,2]
[361943975,1747903849568,-371.56538245,0.00023013,2]
[361943977,1747903849578,-430.0,0.00023013,2]
[361943989,1747903849674,-450.0,0.00023013,2]
[361943991,1747903849695,-450.0,0.00023013,2]
[361943993,1747903849704,-430.0,0.00023013,2]
[361943995,1747903849714,-430.0,0.00023013,2]
[361943997,1747903849723,-270.0,0.00023013,2]
[361943999,1747903849732,-430.0,0.00023013,2]
[361944001,1747903849741,-456.57,0.00023013,2]
[361944003,1747903849751,-430.0,0.00023013,2]
[361944005,1747903849760,-794.04,0.00023013,2]
[361944007,1747903849770,-430.0,0.00023013,2]
[361944009,1747903849780,-558.34,0.00023013,2]
[361944011,1747903849792,-1146.06,0.00023013,2]
[361944013,1747903849802,-1924.26,0.00023013,2]
[361944015,1747903849812,-691.64,0.00023013,2]
[361944017,1747903849822,-430.0,0.00023013,2]
[361944020,1747903849834,-430.0,0.00023013,2]
[361944022,1747903849844,-430.0,0.00023013,2]
[361944024,1747903849853,-430.0,0.00023013,2]
[361944026,1747903849863,-385.96,0.00023013,2]
[361944028,1747903849872,-430.0,0.00023013,2]
[361944030,1747903849883,-851.98,0.00023013,2]
[361944032,1747903849893,-430.0,0.00023013,2]
[361944034,1747903849902,-1178.0,0.00023013,2]
[361944035,1747903849911,-430.0,0.00023013,2]
[361944037,1747903849921,-430.0,0.00023013,2]
[361944039,1747903849930,-430.0,0.00023013,2]
[361944041,1747903849940,-430.0,0.00023013,2]
[361944043,1747903849950,-430.0,0.00023013,2]
[361944045,1747903849960,-430.0,0.00023013,2]
[361944048,1747903849969,-534.56,0.00023013,2]
[361944050,1747903849979,-430.0,0.00023013,2]
[361944052,1747903849990,-627.31,0.00023013,2]
[361944054,1747903849999,-430.0,0.00023013,2]
[361944056,1747903850009,-430.0,0.00023013,2]
[361944058,1747903850019,-430.0,0.00023013,2]
[361944060,1747903850029,-430.0,0.00023013,2]
[361944062,1747903850039,-430.0,0.00023013,2]
[361944064,1747903850050,-430.0,0.00023013,2]
[361944066,1747903850059,-710.92,0.00023013,2]
[361944068,1747903850068,-620.77,0.00023013,2]
[361944070,1747903850078,-430.0,0.00023013,2]
[361944072,1747903850087,-927.85,0.00023013,2]
[361944074,1747903850097,-972.75,0.00023013,2]
[361944076,1747903850106,-430.0,0.00023013,2]
[361944078,1747903850115,-430.0,0.00023013,2]
[361944080,1747903850125,-547.14,0.00023013,2]
[361944082,1747903850135,-430.0,0.00023013,2]
[361944084,1747903850144,-430.0,0.00023013,2]
[361944086,1747903850154,-430.0,0.00023013,2]
[361944088,1747903850163,-430.0,0.00023013,2]
[361944090,1747903850172,-1948.72,0.00023013,2]
[361944092,1747903850182,-415.71153475,0.00023013,2]
[361944094,1747903850191,-430.0,0.00023013,2]
[361944096,1747903850201,-430.0,0.00023013,2]
[361944098,1747903850210,-430.0,0.00023013,2]
[361944100,1747903850220,-430.0,0.00023013,2]
[361944102,1747903850230,-2417.78620712,0.00023038,8]
[361944104,1747903850240,-1500.0,0.00023068,2]
[361944106,1747903850250,-2417.78620712,0.00023141,8]
[361944108,1747903850260,-2417.78620712,0.00023245,8]
[361944110,1747903850270,-522.58357322,0.00023287,2]
[361944112,1747903850280,-430.0,0.00023287,2]
[361944114,1747903850289,-430.0,0.00023287,2]
[361944117,1747903850299,-430.0,0.00023287,2]
[361944119,1747903850308,-373.60431757,0.00023287,2]
[361944121,1747903850318,-321.9,0.00023287,2]
[361944123,1747903850328,-443.92331763,0.00023287,2]
[361944125,1747903850337,-430.0,0.00023287,2]
[361944127,1747903850347,-430.0,0.00023287,2]
[361944129,1747903850357,-456.57,0.00023287,2]
[361944131,1747903850366,-430.0,0.00023287,2]
[361944133,1747903850377,-794.04,0.00023287,2]
[361944135,1747903850386,-430.0,0.00023287,2]
[361944137,1747903850396,-558.34,0.00023287,2]
[361944139,1747903850406,-1146.06,0.00023287,2]
[361944141,1747903850415,-1924.26,0.00023287,2]
[361944143,1747903850424,-691.64,0.00023287,2]
[361944145,1747903850434,-430.0,0.00023287,2]
[361944147,1747903850443,-430.0,0.00023287,2]
[361944149,1747903850453,-430.0,0.00023287,2]
[361944151,1747903850463,-430.0,0.00023287,2]
[361944153,1747903850473,-430.0,0.00023287,2]
[361944155,1747903850482,-851.98,0.00023287,2]
[361944157,1747903850491,-430.0,0.00023287,2]
[361944159,1747903850501,-1178.0,0.00023287,2]
[361944161,1747903850511,-430.0,0.00023287,2]
[361944163,1747903850520,-430.0,0.00023287,2]
[361944165,1747903850529,-430.0,0.00023287,2]
[361944167,1747903850539,-430.0,0.00023287,2]
[361944169,1747903850548,-430.0,0.00023287,2]